bitfinex-derivatives/quotes_ETHF0:USTF0_20250214
["timestamp","ask_amount","ask_price","bid_price","bid_amount"]
[1739494428117,0.74755,2675.0,2674.5,3.2078]
[1739494428422,2.97713549,2675.1,2674.8,0.74759]
[1739494428914,2.97713549,2675.1,2674.7,0.7476]
[1739494428915,0.74756,2675.0,2674.7,0.7476]
[1739494429714,0.74757,2675.0,2674.7,0.7476]
[1739494430015,0.74761,2674.8,2674.5,3.2078]
[1739494430215,0.5569,2674.7,2674.6,0.74766]
[1739494430414,1.1494,2674.7,2674.6,0.74766]
[1739494432517,1.1494,2674.7,2674.6,3.68366]
[1739494437621,1.1494,2674.7,2674.6,5.16011562]
[1739494439618,1.7056,2674.7,2674.6,5.16011562]
[1739494444523,1.7056,2674.7,2674.6,2.22411562]
[1739494444925,1.7056,2674.7,2674.6,2.10686998]
[1739494450627,0.5569,2674.7,2674.6,2.10686998]
[1739494451328,0.52453704,2675.2,2675.1,0.74752]
[1739494451523,0.5588,2675.6,2675.5,0.7474]
[1739494451733,0.5588,2675.6,2675.5,1.35920998]
[1739494452028,0.5588,2675.6,2675.3,3.2078]
[1739494452029,1.91800998,2675.6,2675.3,3.2078]
[1739494452217,0.74743,2675.4,2675.3,3.2078]
[1739494452424,1.91800998,2675.6,2675.1,1.35920998]
[1739494452425,4.8198,2675.5,2675.1,1.35920998]
[1739494452718,1.1254,2675.3,2674.9,1.36481861]
[1739494452928,0.74752,2675.1,2674.9,1.36481861]
[1739494453234,1.3063,2675.2,2674.9,2.11238861]
[1739494453418,1.30019415,2675.2,2674.9,2.11238861]
[1739494454225,0.55269415,2675.2,2675.1,1.35920998]
[1739494454426,0.55269415,2675.2,2675.1,4.56700998]
[1739494454727,0.55269415,2675.2,2675.1,1.35920998]
[1739494454925,1.30018415,2675.2,2675.1,1.35920998]
[1739494455829,1.30018415,2675.2,2674.9,1.36481861]
[1739494456028,1.91190413,2675.2,2674.9,0.00560863]
[1739494456230,2.10675998,2675.0,2674.9,0.00560863]
[1739494456433,2.6797883,2675.0,2674.9,0.00560863]
[1739494457132,2.6797883,2675.0,2674.9,0.00286599]
[1739494457830,0.57302832,2675.0,2674.9,1.36207597]
[1739494458028,0.55269415,2675.2,2674.9,1.36207597]
[1739494458227,2.16743679,2675.2,2675.1,2.10672998]
[1739494458833,2.16743679,2675.2,2675.1,1.35920998]
[1739494459027,2.16743679,2675.2,2674.9,0.00286599]
[1739494459028,2.16743679,2675.2,2674.9,1.36207597]
[1739494459229,2.91495679,2675.2,2674.9,1.36207597]
[1739494459428,2.74026965,2675.2,2674.9,1.36207597]
[1739494459726,2.91492679,2675.2,2674.9,0.75042599]
[1739494460328,2.16743679,2675.2,2675.0,0.74753]
[1739494460523,2.91493679,2675.2,2674.9,0.75041599]
[1739494461126,2.16743679,2675.2,2675.0,0.74755]
[1739494461930,0.55543679,2675.2,2674.9,0.00286599]
[1739494462128,0.55543679,2675.2,2675.0,0.74752]
[1739494462329,0.55543679,2675.2,2675.1,0.74752]
[1739494462531,0.00274264,2675.2,2675.1,0.74752]
[1739494474542,0.00274264,2675.2,2675.0,3.95533]
[1739494474738,0.75024264,2675.2,2675.0,3.95533]
[1739494474935,0.5549,2675.1,2675.0,3.95533]
[1739494475236,1.6997,2675.1,2675.0,3.95533]
[1739494478744,1.6997,2675.1,2674.9,0.00286599]
[1739494479135,1.6997,2675.1,2675.0,0.74755]
[1739494481238,1.6997,2675.1,2674.9,3.95822599]
[1739494481444,2.44724,2675.1,2674.9,3.21066599]
[1739494481643,2.44724,2675.1,2674.9,3.95823599]
[1739494481841,2.44724,2675.1,2674.9,3.21066599]
[1739494482040,2.44724,2675.1,2674.9,3.95822599]
[1739494482237,1.6997,2675.1,2674.9,3.95822599]
[1739494482744,1.6997,2675.1,2674.9,3.21066599]
[1739494483045,0.74755,2675.0,2674.9,0.00286599]
[1739494483442,0.74763,2674.7,2674.6,3.2078]
[1739494485349,0.74769,2674.5,2674.4,0.00560863]
[1739494485946,0.5509,2674.5,2674.4,0.75331863]
[1739494486645,1.103,2674.5,2674.4,0.75331863]
[1739494486841,1.85069,2674.5,2674.4,0.00560863]
[1739494487449,1.103,2674.5,2674.4,0.00560863]
[1739494488447,1.103,2674.5,2674.4,0.75331863]
[1739494488843,1.103,2674.5,2674.4,0.00560863]
[1739494489249,1.103,2674.5,2674.4,0.75331863]
[1739494493140,1.103,2674.5,2674.4,0.00560863]
[1739494493545,1.103,2674.5,2674.4,0.75331863]
[1739494494848,3.2078,2675.1,2674.4,5.08266863]
[1739494495054,0.5988,2675.0,2674.6,2.94434883]
[1739494495348,0.5988,2675.0,2674.9,0.74757]
[1739494495945,0.5988,2675.0,2674.9,3.69191883]
[1739494496146,1.1538,2675.1,2675.0,0.74755]
[1739494496348,1.1538,2675.1,2675.0,3.95535]
[1739494497049,0.00274264,2675.2,2675.1,0.74752]
[1739494502956,0.00274264,2675.2,2675.1,1.34542]
[1739494503762,0.00274264,2675.2,2675.1,1.64004289]
[1739494503959,0.00274264,2675.2,2675.1,42.14542]
[1739494505753,0.00274264,2675.2,2675.1,1.34542]
[1739494505958,0.00274264,2675.2,2675.1,4.28845863]
[1739494506547,0.5906,2675.7,2675.1,4.28845863]
[1739494506752,0.5906,2675.7,2675.6,0.74738]
[1739494509775,0.5906,2675.7,2675.6,1.29658]
[1739494509970,0.5906,2675.7,2675.6,3.95518]
[1739494510562,0.5906,2675.7,2675.6,0.74738]
[1739494513066,0.5906,2675.7,2675.6,3.95518]
[1739494513469,0.5906,2675.7,2675.6,0.74738]
[1739494514359,0.5906,2675.7,2675.4,2.94252767]
[1739494514567,0.5906,2675.7,2675.3,3.2078]
[1739494514767,0.74744,2675.4,2675.3,3.2078]
[1739494515168,0.74744,2675.4,2675.0,3.2078]
[1739494515465,0.7474,2675.6,2675.3,0.74745]
[1739494515667,1.8741,2675.6,2675.3,0.74745]
[1739494516473,0.74741,2675.5,2675.3,0.74745]
[1739494516671,1.87409,2675.6,2675.3,0.74745]
[1739494516860,1.1267,2675.6,2675.4,0.74742]
[1739494517064,1.1267,2675.6,2675.1,3.53402767]
[1739494517367,1.87409,2675.6,2675.3,0.74745]
[1739494517567,1.1267,2675.6,2675.4,0.74743]
[1739494518371,1.1267,2675.6,2675.5,0.74741]
[1739494518874,1.1267,2675.6,2675.3,3.2078]
[1739494519174,1.1267,2675.6,2675.1,4.08302767]
[1739494519175,1.1267,2675.6,2675.2,0.74748]
[1739494519370,0.74745,2675.4,2675.1,0.74749]
[1739494519569,0.74745,2675.4,2675.0,3.2078]
[1739494519771,1.1267,2675.6,2675.0,3.2078]
[1739494520074,0.74746,2675.4,2675.1,0.7475]
[1739494520375,0.74746,2675.3,2675.0,3.95533]
[1739494520568,0.74752,2675.1,2675.0,3.2078]
[1739494520770,1.1553,2675.2,2675.0,3.2078]
[1739494520964,0.5704,2675.1,2675.0,3.2078]
[1739494521169,0.5704,2675.1,2675.0,3.95535]
[1739494524785,0.5704,2675.1,2675.0,0.74755]
[1739494527473,0.5704,2675.1,2675.0,3.95535]
[1739494527675,1.1553,2675.2,2675.1,0.74752]
[1739494529277,1.1553,2675.2,2674.8,2.94252767]
[1739494529474,0.74753,2675.1,2674.9,0.74756]
[1739494529679,1.1553,2675.2,2674.9,0.74756]
[1739494529981,1.90281,2675.2,2675.0,0.74754]
[1739494530185,1.1553,2675.2,2674.8,2.94252767]
[1739494530477,1.1553,2675.2,2675.0,0.74753]
[1739494530674,1.1553,2675.2,2674.8,2.94252767]
[1739494531071,1.90281,2675.2,2674.9,0.74755]
[1739494531277,1.1553,2675.2,2675.0,0.74753]
[1739494532778,1.1553,2675.2,2675.1,0.74752]
[1739494533174,1.1553,2675.2,2674.9,0.5468]
[1739494533380,1.1553,2675.2,2675.1,0.74752]
[1739494534081,1.90279,2675.2,2675.0,0.74753]
[1739494534280,1.1553,2675.2,2674.9,0.5468]
[1739494534676,1.1553,2675.2,2675.0,0.74753]
[1739494534878,1.1553,2675.2,2675.0,0.74752]
[1739494535380,1.1553,2675.2,2674.9,0.5468]
[1739494535580,1.1553,2675.2,2675.1,0.74752]
[1739494536385,1.1553,2675.2,2674.9,0.5468]
[1739494536584,1.90281,2675.2,2675.0,0.74753]
[1739494537587,1.1553,2675.2,2675.0,0.74752]
[1739494537782,1.1553,2675.2,2675.1,0.74752]
[1739494538282,1.1553,2675.2,2675.0,0.74753]
[1739494538283,1.90279,2675.2,2675.0,0.74753]
[1739494539988,1.1553,2675.2,2674.9,0.5468]
[1739494540189,0.74752,2675.1,2674.9,1.29436]
[1739494540383,0.74752,2675.1,2675.0,0.74755]
[1739494540794,1.1553,2675.2,2674.8,3.2078]
[1739494540982,0.74764,2674.7,2674.5,3.2078]
[1739494541182,1.7359,2674.6,2674.4,0.00560863]
[1739494541377,2.48356,2674.6,2674.4,0.00560863]
[1739494541984,2.48356,2674.6,2674.4,0.75331863]
[1739494542185,1.7359,2674.6,2674.5,0.74769]
[1739494545395,1.7359,2674.6,2674.4,4.53489863]
[1739494545588,1.7359,2674.6,2674.4,3.78720863]
[1739494545887,1.7359,2674.6,2674.5,0.74769]
[1739494547301,0.51315119,2674.9,2674.4,3.78720863]
[1739494547503,1.68155119,2674.9,2674.4,4.11300863]
[1739494547806,1.68155119,2674.9,2674.8,0.7476]
[1739494551207,0.51315119,2674.9,2674.8,0.7476]
[1739494551402,3.72095119,2675.3,2674.8,0.7476]
[1739494551607,3.72095119,2675.3,2675.1,0.74751]
[1739494552002,3.2078,2675.3,2675.0,0.74752]
[1739494552202,3.95526,2675.3,2675.0,0.74752]
[1739494552402,1.7018,2675.5,2674.9,1.1167]
[1739494552604,3.3138,2675.5,2674.9,1.1167]
[1739494552908,3.82689524,2675.5,2675.3,0.74745]
[1739494554008,4.57430524,2675.5,2675.3,0.74745]
[1739494554506,3.3138,2675.5,2674.9,1.1167]
[1739494554702,3.3138,2675.5,2675.3,0.74745]
[1739494555307,3.3138,2675.5,2674.9,1.1167]
[1739494555706,3.3138,2675.5,2675.4,0.74744]
[1739494556008,3.3138,2675.5,2674.9,1.1167]
[1739494556009,3.3138,2675.5,2674.9,4.0527]
[1739494556210,3.3138,2675.5,2675.3,0.74746]
[1739494558202,1.7018,2675.5,2675.4,0.74744]
[1739494558911,2.2146566,2675.5,2675.4,0.74744]
[1739494563515,2.2146566,2675.5,2675.2,3.2078]
[1739494563819,2.2146566,2675.5,2675.4,0.74744]
[1739494564519,2.9620766,2675.5,2675.3,0.74745]
[1739494564815,2.2146566,2675.5,2675.2,3.2078]
[1739494565016,2.2146566,2675.5,2675.4,0.74744]
[1739494566019,2.2146566,2675.5,2675.2,3.2078]
[1739494566421,0.74744,2675.4,2675.2,0.74748]
[1739494566820,1.7018,2675.5,2674.9,4.3245]
[1739494567022,1.7018,2675.5,2675.4,0.74744]
[1739494570418,2.44921,2675.5,2675.3,0.74744]
[1739494570715,0.74746,2675.4,2674.9,3.7654]
[1739494570916,1.7018,2675.5,2674.9,3.2078]
[1739494571117,0.74752,2675.1,2674.9,3.2078]
[1739494571419,1.7022,2675.0,2674.9,3.2078]
[1739494571616,1.7022,2675.0,2674.9,3.95537]
[1739494573017,1.7022,2675.0,2674.9,3.2078]
[1739494573315,1.7022,2675.0,2674.9,3.95537]
[1739494573925,1.7022,2675.0,2674.9,3.2078]
[1739494574315,1.7022,2675.0,2674.9,3.95537]
[1739494575222,1.7022,2675.0,2674.9,0.74757]
[1739494579524,1.7022,2675.0,2674.5,3.2078]
[1739494579826,0.74761,2674.8,2674.6,0.74765]
[1739494580429,0.74761,2674.8,2674.5,3.95547]
[1739494580826,1.26073494,2674.8,2674.5,3.2078]
[1739494581025,1.26073494,2674.8,2674.6,0.74766]
[1739494581524,0.74761,2674.8,2674.6,0.74766]
[1739494582424,4.8188,2674.9,2674.8,0.7476]
[1739494582630,4.8188,2674.9,2674.5,3.2078]
[1739494582826,5.56638,2674.9,2674.7,0.74763]
[1739494583025,4.8188,2674.9,2674.8,0.7476]
[1739494583422,5.33151128,2674.9,2674.8,0.7476]
[1739494584730,6.07909128,2674.9,2674.7,0.74762]
[1739494584922,5.33151128,2674.9,2674.5,3.2078]
[1739494585231,5.33151128,2674.9,2674.8,0.7476]
[1739494587434,6.07909128,2674.9,2674.7,0.74762]
[1739494587637,5.33151128,2674.9,2674.6,0.5589]
[1739494588028,0.51271128,2674.8,2674.7,0.74763]
[1739494589526,5.56639,2674.9,2674.7,0.74763]
[1739494589932,5.56639,2674.9,2674.7,0.74761]
[1739494589933,4.8188,2674.9,2674.7,0.74761]
[1739494590638,0.06097547,2674.8,2674.4,0.00560863]
[1739494590838,3.2078,2674.5,2674.4,0.00560863]
[1739494591041,4.8198,2674.5,2674.4,0.00560863]
[1739494591234,5.945,2674.5,2674.4,0.00560863]
[1739494591435,2.7372,2674.5,2674.4,0.00560863]
[1739494591637,2.7372,2674.5,2674.4,0.75331863]
[1739494592837,1.612,2674.7,2674.4,0.00560863]
[1739494593034,1.612,2674.7,2674.6,0.74766]
[1739494594343,4.3351,2674.9,2674.4,0.59170863]
[1739494595046,5.08268,2674.9,2674.7,0.74763]
[1739494595337,5.08268,2674.9,2674.5,0.74769]
[1739494595338,5.0827,2674.9,2674.5,0.74769]
[1739494595732,5.0827,2674.9,2674.6,0.74764]
[1739494595931,5.0827,2674.9,2674.7,0.74763]
[1739494596339,2.94252767,2675.3,2674.7,0.74763]
[1739494596340,3.2078,2675.3,2674.7,3.2078]
[1739494596643,2.1953,2675.2,2674.9,0.74756]
[1739494596945,2.70797109,2675.2,2674.9,0.74756]
[1739494597847,1.84347109,2675.2,2674.9,0.74756]
[1739494599348,1.09597109,2675.2,2674.8,1.0964]
[1739494599548,1.09597109,2675.2,2675.0,0.74755]
[1739494600751,1.84347109,2675.2,2674.9,0.74755]
[1739494602046,1.26017109,2675.2,2674.8,1.0964]
[1739494602251,0.51267109,2675.2,2675.1,0.74752]
[1739494602548,3.95519,2675.6,2675.0,3.2078]
[1739494602854,3.95519,2675.6,2675.3,0.74744]
[1739494603053,1.63557109,2675.5,2675.3,0.74744]
[1739494603350,2.20397109,2675.5,2675.2,0.5949]
[1739494603557,2.20397109,2675.5,2675.3,0.74745]
[1739494603749,2.95138109,2675.5,2675.3,0.74745]
[1739494604349,0.74745,2675.4,2675.2,0.5949]
[1739494604551,0.74746,2675.3,2675.2,0.5949]
[1739494606150,2.20397109,2675.5,2674.9,2.936]
[1739494606351,0.5607,2675.2,2674.9,2.936]
[1739494606552,0.74755,2675.0,2674.9,2.936]
[1739494606750,0.5607,2675.2,2674.9,3.68358]
[1739494606951,1.30822,2675.2,2674.9,3.68358]
[1739494607341,0.5607,2675.2,2674.9,2.936]
[1739494607546,0.5607,2675.2,2675.0,0.74754]
[1739494607746,0.5607,2675.2,2674.8,0.5503]
[1739494607951,1.3082,2675.2,2674.9,0.74756]
[1739494608143,1.3082,2675.2,2675.0,0.74753]
[1739494608658,0.5607,2675.2,2675.1,0.74752]
[1739494611858,0.5607,2675.2,2674.8,3.49282767]
[1739494612160,1.30819,2675.2,2675.0,0.74754]
[1739494612360,0.5747,2675.1,2675.0,0.74754]
[1739494614853,0.5747,2675.1,2674.8,0.5503]
[1739494615256,0.5747,2675.1,2675.0,0.74755]
[1739494618760,0.5747,2675.1,2674.8,0.5503]
[1739494618962,1.32224,2675.1,2674.9,0.74756]
[1739494619561,1.32224,2675.1,2675.0,0.74755]
[1739494619863,0.5747,2675.1,2675.0,0.74755]
[1739494620163,1.32222,2675.1,2675.0,0.74755]
[1739494620366,1.32224,2675.1,2674.9,0.74756]
[1739494620566,0.5815,2675.0,2674.9,0.74756]
[1739494621466,0.5747,2675.1,2675.0,0.74755]
[1739494622165,0.5607,2675.2,2675.1,0.74752]
[1739494623061,0.5866,2675.3,2675.2,0.74749]
[1739494629866,0.5866,2675.3,2675.0,3.2078]
[1739494630069,0.5725,2675.2,2675.0,3.2078]
[1739494630270,0.5725,2675.2,2675.1,0.74752]
[1739494633171,0.5725,2675.2,2675.0,3.95533]
[1739494633371,0.5725,2675.2,2675.0,3.2078]
[1739494633675,0.5725,2675.2,2674.8,2.936]
[1739494633880,0.74758,2674.9,2674.8,2.936]
[1739494636377,2.35858,2674.9,2674.8,2.936]
[1739494637574,4.8188,2674.9,2674.4,0.00560863]
[1739494637782,0.74764,2674.7,2674.4,0.75330863]
[1739494639275,2.17779593,2674.8,2674.4,0.00560863]
[1739494639469,2.92540593,2674.8,2674.5,0.74767]
[1739494640282,2.17779593,2674.8,2674.4,3.21340863]
[1739494640482,2.92541593,2674.8,2674.5,0.74769]
[1739494640677,2.17779593,2674.8,2674.4,3.21340863]
[1739494640875,2.92541593,2674.8,2674.5,0.74767]
[1739494641279,2.41202,2674.8,2674.4,3.21340863]
[1739494641478,2.41202,2674.8,2674.6,0.74766]
[1739494641883,1.6644,2674.8,2674.6,0.74766]
[1739494642486,2.41201,2674.8,2674.6,0.74766]
[1739494642872,2.41201,2674.8,2674.4,3.21340863]
[1739494642873,4.8722,2674.8,2674.4,0.00560863]
[1739494643078,0.74763,2674.7,2674.4,0.75331863]
[1739494643478,0.74766,2674.6,2674.4,0.75331863]
[1739494643880,4.8722,2674.8,2674.4,0.00560863]
[1739494644085,0.5686,2674.5,2674.4,0.00560863]
[1739494644685,0.5686,2674.5,2674.4,0.75331863]
[1739494646180,5.07151,2674.8,2674.5,0.74766]
[1739494646380,1.30033,2674.7,2674.5,0.74766]
[1739494647583,0.5527,2674.7,2674.4,1.14090863]
[1739494648185,1.30034,2674.7,2674.5,0.74769]
[1739494649782,0.74766,2674.6,2674.4,1.33609863]
[1739494650392,0.5527,2674.7,2674.4,0.58840863]
[1739494650587,1.30034,2674.7,2674.5,0.74768]
[1739494650787,0.5527,2674.7,2674.4,0.58840863]
[1739494651098,0.5527,2674.7,2674.6,0.74766]
[1739494654781,0.5527,2674.7,2674.6,3.95546]
[1739494656186,0.5527,2674.7,2674.6,3.94935415]
[1739494656484,0.5527,2674.7,2674.6,0.74155415]
[1739494659397,0.74769,2674.5,2674.4,0.00560863]
[1739494659598,1.611,2674.5,2674.4,0.00560863]
[1739494659897,1.611,2674.5,2674.4,0.75331863]
[1739494660599,0.5527,2674.7,2674.4,0.00560863]
[1739494660895,1.30034,2674.7,2674.5,0.74768]
[1739494661296,1.30034,2674.7,2674.4,0.00560863]
[1739494661600,0.5527,2674.7,2674.4,0.00560863]
[1739494661897,0.74766,2674.6,2674.4,0.75330863]
[1739494662699,1.81382425,2674.7,2674.5,0.74768]
[1739494662996,1.30034,2674.7,2674.5,0.74768]
[1739494663498,0.5527,2674.7,2674.5,0.74768]
[1739494663893,1.30035,2674.7,2674.4,0.00560863]
[1739494664100,1.30035,2674.7,2674.4,0.75330863]
[1739494665704,0.5527,2674.7,2674.4,0.75330863]
[1739494665902,0.74766,2674.6,2674.4,0.75330863]
[1739494667799,0.5527,2674.7,2674.4,0.75329863]
[1739494668509,1.30035,2674.7,2674.5,0.74768]
[1739494668711,1.30035,2674.7,2674.4,0.00560863]
[1739494668907,0.5527,2674.7,2674.4,0.00560863]
[1739494669105,0.74769,2674.5,2674.4,0.00560863]
[1739494671007,0.74767,2674.6,2674.4,0.75330863]
[1739494672709,0.74769,2674.5,2674.4,0.00560863]
[1739494674805,2.42560361,2674.7,2674.4,0.00560863]
[1739494675112,0.74767,2674.6,2674.4,0.75331863]
[1739494677308,1.06629412,2674.7,2674.4,0.00560863]
[1739494677513,1.81394412,2674.7,2674.5,0.74768]
[1739494677715,1.06629412,2674.7,2674.4,0.00560863]
[1739494677905,1.81394412,2674.7,2674.5,0.74768]
[1739494679120,1.30035,2674.7,2674.5,0.74768]
[1739494679316,0.74767,2674.6,2674.4,0.75330863]
[1739494679516,0.74769,2674.5,2674.4,0.00560863]
[1739494680222,0.74768,2674.6,2674.4,0.00560863]
[1739494680617,0.5527,2674.7,2674.4,0.00560863]
[1739494680822,1.91200949,2674.7,2674.4,0.00560863]
[1739494681118,0.74766,2674.6,2674.4,0.75330863]
[1739494681323,1.91200949,2674.7,2674.4,0.00560863]
[1739494681518,0.74768,2674.6,2674.4,0.75330863]
[1739494682521,3.52300949,2674.7,2674.4,0.00560863]
[1739494682730,0.74769,2674.5,2674.4,0.00560863]
[1739494683322,0.74767,2674.6,2674.4,0.75331863]
[1739494684220,3.52300949,2674.7,2674.4,0.00560863]
[1739494684527,4.27065949,2674.7,2674.5,0.74769]
[1739494684823,2.65965949,2674.7,2674.5,0.74769]
[1739494685624,0.74767,2674.6,2674.4,1.33341863]
[1739494686023,0.74767,2674.6,2674.4,0.75331863]
[1739494686224,0.74768,2674.6,2674.4,0.75331863]
[1739494686619,2.42593243,2674.7,2674.4,0.00560863]
[1739494686824,0.74769,2674.5,2674.4,0.00560863]
[1739494687028,5.31479949,2674.5,2674.4,0.00560863]
[1739494687420,5.82872243,2674.5,2674.4,0.00560863]
[1739494687619,6.46327523,2674.5,2674.4,0.00560863]
[1739494688225,0.74781,2674.1,2673.8,0.74787]
[1739494688420,0.5705,2674.0,2673.8,0.74787]
[1739494688626,0.5739,2673.9,2673.8,0.74787]
[1739494689928,0.00560863,2674.1,2674.0,0.74783]
[1739494690128,0.00560863,2674.1,2674.0,3.95563]
[1739494692326,0.00560863,2674.1,2674.0,6.89163]
[1739494692520,0.5749,2674.8,2674.0,12.1438]
[1739494692723,0.5749,2674.8,2674.7,0.74763]
[1739494694129,1.172,2674.9,2674.7,0.74763]
[1739494695030,1.172,2674.9,2674.8,1.35930949]
[1739494695227,0.00286599,2675.0,2674.9,0.74757]
[1739494695530,0.00286599,2675.0,2674.9,1.31557]
[1739494695931,0.00286599,2675.0,2674.9,4.52337]
[1739494699836,0.00286599,2675.0,2674.9,7.45937]
[1739494706340,0.00286599,2675.0,2674.9,8.00277]
[1739494717745,0.00286599,2675.0,2674.9,6.4255248]
[1739494720041,0.00286599,2675.0,2674.9,6.73040446]
[1739494721048,0.5841,2675.3,2675.2,0.74749]
[1739494721242,0.74734,2675.8,2675.2,4.5665548]
[1739494721438,0.74734,2675.8,2675.6,0.74738]
[1739494721439,1.88934,2675.8,2675.6,0.74738]
[1739494721649,0.74737,2675.7,2675.5,2.1061548]
[1739494722451,0.74737,2675.7,2675.5,1.3587548]
[1739494723149,0.74737,2675.7,2675.5,2.1061648]
[1739494724344,0.5889,2675.6,2675.5,2.1061648]
[1739494724747,0.5889,2675.6,2675.5,1.3587548]
[1739494725646,0.5889,2675.6,2675.5,2.1061648]
[1739494726143,1.65505198,2675.8,2675.7,0.74735]
[1739494726341,1.65505198,2675.8,2675.7,2.1061048]
[1739494728954,1.142,2675.8,2675.7,2.1061048]
[1739494731257,1.142,2675.8,2675.7,5.3139048]
[1739494731955,0.5841,2675.8,2675.7,5.3139048]
[1739494732253,1.1115,2676.1,2676.0,0.74727]
[1739494732554,1.6593,2676.1,2676.0,0.74727]
[1739494733160,1.6593,2676.1,2675.9,1.3587548]
[1739494733362,1.6593,2676.1,2675.9,2.1060348]
[1739494734358,2.40654,2676.1,2675.9,2.1060348]
[1739494734962,1.6593,2676.1,2676.0,0.74727]
[1739494735155,0.5599,2676.1,2676.0,0.74727]
[1739494735362,3.2078,2676.6,2676.0,3.7909]
[1739494735563,3.2078,2676.6,2676.5,0.74713]
[1739494735768,3.71971911,2676.6,2676.4,1.3587548]
[1739494736058,3.71971911,2676.6,2676.4,2.1058948]
[1739494736262,3.95493,2676.6,2676.3,0.74717]
[1739494736565,3.2078,2676.6,2676.2,1.3587548]
[1739494736956,3.95492,2676.6,2676.3,0.74717]
[1739494737762,0.74713,2676.5,2676.3,0.74717]
[1739494737960,0.74718,2676.4,2676.2,1.3587548]
[1739494738156,1.88218,2676.3,2676.2,1.3587548]
[1739494738359,2.47408,2676.3,2676.2,1.3587548]
[1739494738561,1.7269,2676.3,2676.2,1.3587548]
[1739494739156,2.4741,2676.3,2676.0,5.3138148]
[1739494739364,0.74723,2676.2,2676.0,4.5665548]
[1739494739556,1.7269,2676.3,2676.0,4.5665548]
[1739494739756,2.47409,2676.3,2676.1,0.74723]
[1739494740161,1.7269,2676.3,2676.0,4.5665548]
[1739494740766,1.7269,2676.3,2676.1,0.74723]
[1739494741268,1.72079415,2676.3,2676.0,4.5665548]
[1739494741467,1.72079415,2676.3,2676.1,0.74723]
[1739494741968,1.72079415,2676.3,2676.0,4.5665548]
[1739494742269,1.72079415,2676.3,2676.1,0.74723]
[1739494743273,1.72079415,2676.3,2676.0,5.3138048]
[1739494743274,2.46799415,2676.3,2676.0,5.3138048]
[1739494743476,0.74724,2676.2,2676.0,1.3587548]
[1739494744270,4.92859415,2676.3,2676.0,1.3587548]
[1739494744475,4.92859415,2676.3,2676.1,0.74723]
[1739494744776,4.92859415,2676.3,2676.1,0.74721]
[1739494744977,4.92859415,2676.3,2676.0,1.3587548]
[1739494745170,4.92859415,2676.3,2676.2,2.1059648]
[1739494746574,1.72079415,2676.3,2676.2,2.1059648]
[1739494750286,1.72079415,2676.3,2676.2,5.3137648]
[1739494750586,1.14389415,2676.3,2676.2,5.3137648]
[1739494752175,1.14389415,2676.3,2676.2,2.1059648]
[1739494753080,1.14389415,2676.3,2676.2,1.3587548]
[1739494753380,0.74721,2676.2,2676.0,0.74727]
[1739494753582,1.33981,2676.2,2675.9,3.95508]
[1739494753779,1.33981,2676.2,2676.0,0.74727]
[1739494754089,0.5926,2676.2,2676.0,0.74727]
[1739494754276,0.5926,2676.2,2676.0,2.1060048]
[1739494754587,1.10506187,2676.2,2676.1,0.74724]
[1739494755288,1.10506187,2676.2,2676.0,2.1060048]
[1739494755584,1.85227187,2676.2,2676.0,2.1060048]
[1739494756287,1.10506187,2676.2,2676.0,1.3587548]
[1739494756591,1.10506187,2676.2,2676.1,0.74724]
[1739494756789,0.5926,2676.2,2676.1,0.74724]
[1739494757781,3.26435602,2676.3,2676.2,0.74721]
[1739494758785,1.65635602,2676.3,2676.2,2.1059648]
[1739494759293,3.2078,2676.4,2676.3,0.74718]
[1739494759592,3.2078,2676.4,2676.2,1.3587548]
[1739494759793,1.0959,2676.3,2676.2,42.9059548]
[1739494759991,1.0959,2676.3,2676.2,2.1059548]
[1739494761593,1.6087294,2676.3,2676.2,2.1059548]
[1739494763295,1.6087294,2676.3,2676.2,1.3587548]
[1739494763498,1.6087294,2676.3,2676.0,4.2947548]
[1739494763795,1.6087294,2676.3,2676.2,0.74721]
[1739494765091,1.6087294,2676.3,2676.2,2.1059648]
[1739494766592,1.6087294,2676.3,2676.2,2.6996648]
[1739494766793,2.1724,2676.5,2676.2,1.9524548]
[1739494766998,2.1724,2676.5,2676.4,0.74716]
[1739494767591,0.5644,2676.5,2676.4,2.1059148]
[1739494769590,1.1779,2676.6,2676.4,1.3587548]
[1739494769788,0.562,2676.9,2676.4,1.3587548]
[1739494769992,1.7546,2676.9,2676.8,1.3587548]
[1739494771104,2.50163,2676.9,2676.6,2.1058448]
[1739494771293,2.50163,2676.9,2676.6,2.10348976]
[1739494771793,2.26711943,2676.9,2676.7,0.74707]
[1739494773299,1.7546,2676.9,2676.7,0.74707]
[1739494774493,1.7546,2676.9,2676.6,1.35639976]
[1739494774692,2.50163,2676.9,2676.6,2.10348976]
[1739494774898,2.50163,2676.9,2676.6,1.35639976]
[1739494775099,1.7546,2676.9,2676.7,0.74706]
[1739494777092,2.2668359,2676.9,2676.6,1.35639976]
[1739494777297,0.74706,2676.8,2676.6,1.35639976]
[1739494777500,0.74706,2676.8,2676.6,2.10349976]
[1739494778299,0.74706,2676.8,2676.6,1.35639976]
[1739494779505,2.2668359,2676.9,2676.6,1.35639976]
[1739494779707,0.74706,2676.8,2676.6,2.10348976]
[1739494779899,2.2668359,2676.9,2676.6,1.35639976]
[1739494780203,0.74707,2676.7,2676.6,1.35639976]
[1739494780607,0.74707,2676.8,2676.6,1.35639976]
[1739494781308,2.2668359,2676.9,2676.6,1.35639976]
[1739494781703,0.74705,2676.8,2676.6,2.10347976]
[1739494782306,3.0138759,2676.9,2676.6,2.10347976]
[1739494782503,3.0138759,2676.9,2676.6,1.35639976]
[1739494782703,3.0138759,2676.9,2676.7,0.74706]
[1739494783299,3.0138759,2676.9,2676.6,1.35639976]
[1739494783300,3.0138659,2676.9,2676.6,2.10346976]
[1739494783504,3.0138659,2676.9,2676.7,0.74707]
[1739494784109,2.50163,2676.9,2676.7,0.74707]
[1739494784309,0.74705,2676.8,2676.6,2.10347976]
[1739494784612,1.7546,2676.9,2676.6,1.35639976]
[1739494784808,0.74706,2676.8,2676.6,1.35639976]